{"text_format":"3","workbook":"xlsx","n_sheets":10,"sheets":["Đối sánh các năm","Số liệu ","Cơ cấu giải cấp Khoa","DS báo cáo xét giải cấp Trường","DS đề nghị xét cấp Trường","DS giải nhất khoa","DS giải nhì khoa","DS bc xét giải cấp Trường","Tổng hợp điểm ","DS giải ba khoa"],"not_rendered":{"images":1,"defined_names":3},"read":"whole","date_system":"1900"}

{"sheet":"Đối sánh các năm","index":0,"n_rows":15,"n_cols":9,"rows_kept":15,"merged":[[1,0,2,0],[1,1,2,1],[1,2,1,5],[8,2,8,4]]}
[]
["TT","Đơn vị","TS báo cáo"]
[null,null,"2021-2022","2022-2023","2023-2024","2024-2025"]
[1,"CK",25,38,42,49]
[2,"CNTT",21,28,36,43]
[3,"C",17,28,34,28]
[4,"Đ-ĐT",17,41,51,57]
[5,"H-MT",21,24,26,36]
[6,"Kế toán và Kinh doanh","Chưa thành lập Khoa",null,null,36,null,null,"  "]
[7,"Kinh tế và Quản lý",25,48,60,56]
[8,"N",20,18,23,17]
[9,"Luật và LLCT",5,14,15,33]
[10,"TT ĐTQT",null,4,11,18]
[11,"Phân hiệu",null,19,24,34]
[null,"Tổng số",151,262,322,{"$f":"SUM(F4:F14)","v":407}]

{"sheet":"Số liệu ","index":1,"n_rows":14,"n_cols":9,"rows_kept":14,"merged":[[0,0,0,7]]}
["TỔNG HỢP SỐ LIỆU CẤP KHOA\nTẠI HỘI NGHỊ KHOA HỌC SINH VIÊN LẦN THỨ 38"]
["TT","Đơn vị","TS báo cáo đk","TS báo cáo \nđã nộp BCTT","TS báo cáo đăng ký","TS báo cáo               đã nộp","TS được báo cáo tại HN                      cấp Khoa","Số tiểu ban","Ghi chú"]
[1,"CK",43,42,58,49,49,5]
[2,"CNTT",46,36,58,44,43,4,"1 nhóm sv bỏ ko báo cáo vì tai nạn"]
[3,"C",39,34,42,29,28,3]
[4,"Đ-ĐT",67,54,65,57,57,4]
[5,"H-MT",24,26,44,36,36,4]
[6,"Kế toán và Kinh doanh",null,null,44,36,36,4]
[7,"Kinh tế và Quản lý",66,60,60,56,56,5]
[8,"N",20,24,19,17,17,1]
[9,"Luật và LLCT",{"$f":"SUM(C3:C10)","v":305},276,46,33,33,2]
[10,"TT ĐTQT",null,null,20,18,18,2]
[11,"Phân hiệu",null,null,45,35,34,5]
[null,"Tổng số",null,null,{"$f":"SUM(E3:E13)","v":501},410,407,39]

{"sheet":"Cơ cấu giải cấp Khoa","index":2,"n_rows":14,"n_cols":16,"rows_kept":14,"merged":[[0,0,0,12]]}
["CƠ CẤU GIẢI THƯỞNG CẤP KHOA\nTẠI HỘI NGHỊ KHOA HỌC SINH VIÊN LẦN THỨ 38"]
["TT","Đơn vị","TS báo cáo đk","TS báo cáo \nđã nộp BCTT","TS báo cáo đăng ký","TS báo cáo đã nộp","TS được báo cáo tại HN cấp Khoa","Số TB","TS giải","Giải nhất","Giải nhì","Giải ba","Tỷ lệ giải thưởng","Max giải"]
[1,"CK",43,42,58,49,49,5,{"$f":"SUM(J3:L3)","v":16},5,5,6,{"$f":"I3/F3","v":{"v":0.32653061224489793,"d":"33%"}},{"$f":"G3/3","v":{"v":16.333333333333332,"d":"16.33"}}]
[2,"CNTT",46,36,58,44,43,4,12,4,4,4,{"v":0.2727272727272727,"d":"27%"},{"v":14.333333333333334,"d":"14.33"}]
[3,"C",39,34,42,29,28,3,9,3,3,3,{"v":0.3103448275862069,"d":"31%"},{"v":9.333333333333334,"d":"9.33"}]
[4,"Đ-ĐT",67,54,65,57,57,4,17,3,6,8,{"v":0.2982456140350877,"d":"30%"},{"v":19,"d":"19.00"},null," "]
[5,"H-MT",24,26,44,36,36,4,12,4,4,4,{"v":0.3333333333333333,"d":"33%"},{"v":12,"d":"12.00"}]
[6,"Kế toán và Kinh doanh",null,null,44,36,36,4,12,4,4,4,{"v":0.3333333333333333,"d":"33%"},{"v":12,"d":"12.00"}]
[7,"Kinh tế và Quản lý",66,60,60,56,56,5,19,5,5,9,{"v":0.3392857142857143,"d":"34%"},{"v":18.666666666666668,"d":"18.67"}]
[8,"N",20,24,19,17,17,1,6,1,2,3,{"v":0.35294117647058826,"d":"35%"},{"v":5.666666666666667,"d":"5.67"}," "]
[9,"Luật và LLCT",{"$f":"SUM(C3:C10)","v":305},276,46,33,33,2,11,2,4,5,{"v":0.3333333333333333,"d":"33%"},{"v":11,"d":"11.00"}]
[10,"TT ĐTQT",null,null,20,18,18,2,6,1,2,3,{"v":0.3333333333333333,"d":"33%"},{"v":6,"d":"6.00"}]
[11,"Phân hiệu",null,null,45,35,34,5,10,1,4,5,{"v":0.2857142857142857,"d":"29%"},{"v":11.333333333333334,"d":"11.33"}]
[null,"Tổng số",null,null,{"$f":"SUM(E3:E13)","v":501},410,407,39,130,33,43,54,{"v":0.3170731707317073,"d":"32%"},{"$f":"SUM(N3:N13)","v":{"v":135.66666666666669,"d":"135.67"}}]

{"sheet":"DS báo cáo xét giải cấp Trường","index":3,"n_rows":13,"n_cols":8,"rows_kept":13,"hidden":true,"merged":[[0,0,0,6]]}
["ĐỀ XUẤT DANH SÁCH ĐỀ TÀI XÉT GIẢI CẤP TRƯỜNG"]
[]
["TT","Tên đề tài","Sinh viên thực hiện","Lớp","Khoa","Giáo viên hướng dẫn","Đạt giải cấp Khoa","Có sản phẩm công bố khoa học và công nghệ từ kết quả của đề tài (ghi rõ  nếu có)"]
[1,"Nghiên cứu, thiết kế hệ thống điều khiển và xây dựng bản đồ 2D cho Robot di động","Cấn Minh Quang\nĐào Việt Anh \nĐồng Thái Sơn","62CĐT.NB\n62CĐT.NB\n62CĐT1","Cơ khí","ThS. Triệu Thị Minh Thu","Giải Nhất","ĐT có sản phẩm trình bày tại HN cấp Khoa"]
[2,"Ứng dụng học tăng cường trong bài toán giao thông với phương tiện tự hành","Nguyễn Hữu Thành\nNguyễn Thị Thu\nNguyễn Quỳnh Anh","64KTPM1\n64KTPM1\n63KT3","Công nghệ thông tin","TS. Lê Nguyễn Tuấn Thành \nTS. Phạm Mạnh Linh \nTS. Dương Việt Dũng","Giải Nhất","Có bài báo"]
[3,"Nghiên cứu hiện trạng xói lở mái hạ lưu đập khu vực Nam Trung Bộ do đất có tính tan rã gây ra và đề xuất giải pháp","Nguyễn Văn Huy \nPhạm Mai Gia Bảo \nLã Thị Phương Trang","62C","Công trình","TS. Trần Duy Quân\nPGS.TS. Hồ Sỹ Tâm","Giái Nhất","Có bài báo"]
[4,"Nghiên cứu thiết kế, chế tạo hệ thống biến tần 1 pha cho bơm nước dùng trong hộ gia đình","Cấn Đức Thịnh\nNguyễn Ngọc Tân\nLê Thành Duy\nCao Xuân Duy","63TĐH3","Điện - Điện tử","TS. Vũ Quốc Đông","Giải Nhì"]
[5,"Nghiên cứu tạo màng sinh học ứng dụng trong bảo quản trái xoài Việt Nam","Phan Thị Quỳnh Nhi\nNguyễn Khánh Huyền\nTrịnh Thị Thúy\nĐỗ Thu Trà\nNguyễn Xuân Sơn","63SH\n63SH\n63SH\n63SH\n65CNSH2","Hóa - Môi trường","TS. Lê Thị Ngọc Quỳnh","Giải Nhì"]
[6,"Tác động của FDI tới tăng trưởng TFP xanh cấp tỉnh của Việt Nam","Trần Thị Thu Hiền\nTrịnh Minh Nhật\nPhạm Nguyễn Thùy Trang","63K-QT\n63K-QT\n63K-ĐT","Kinh tế và Quản lý","TS. Phùng Mai Lan\nThS. Nguyễn Thùy Trang","Giái Nhất"]
[7,"Nghiên cứu giải pháp đảm bảo cấp nước chữa cháy cho khu công nghiệp","Phạm Hưng Đạo \nĐào Đức Lộc\nĐỗ Thị Hương","62CTN\n62CTN\n62CTN","Kỹ thuật Tài nguyên nước","TS. Nguyễn Thế Anh","Giải Nhì"]
[8,"Khai thác Chat GPT bổ trợ học tập sinh viên năm nhất","Nguyễn Anh Huy \nTrần Đăng Khôi","64CNTT3 \n65C1","Công nghệ thông tin \nCông trình","TS. Đào Thu Hiền \nThS. Phạm Xuân Trung","Giải Nhất"]
[9,"Investigating the instructional strategies to foster critical thinking adopted by lectures for English language and linguistics students at Thuyloi university","Nguyễn Hạnh Nhung\nNguyễn Thị Minh Ngọc \nPhạm Thị Bảo Trâm","64NNA3 \n64NNA2\n64NNA2","Trung tâm Đào tạo Quốc tế","TS. Nguyễn Văn Sơn\nThS. Lê Thị Phương Lan","Giải Nhất"]
[10,"Vận dụng phương pháp luận biện chứng duy vật để nghiên cứu giải pháp phát huy tính tự học của sinh viên Phân hiệu Trường Đại học Thủy lợi","Lê Bích Trâm \nTrương Ngọc Khang","S25-64C \nS25-64QLXD","Phân hiệu","ThS. Vũ Thị Thu Hương","Giải Nhất"]

{"sheet":"DS đề nghị xét cấp Trường","index":4,"n_rows":14,"n_cols":10,"rows_kept":14,"merged":[[0,0,0,5]]}
["DANH SÁCH ĐỀ NGHỊ XÉT GIẢI CẤP TRƯỜNG TẠI HỘI NGHỊ KHOA HỌC SINH VIÊN LẦN THỨ 38"]
[]
["TT","Tên báo cáo","Sinh viên thực hiện","Lớp","Khoa","GVHD",null,"Đạt giải","Ghi chú\n(có bài báo đăng trong năm 2024)","Đạt giải Bộ"]
[1,"Nghiên cứu mô hình máy phát điện năng lượng sóng biển sử dụng cơ chế phao nổi","Nguyễn Thị Trà My\nNguyễn Tấn Mạnh\nNguyễn Trọng Đạt","64CĐT.NB-HQ\n64CĐT1\n63CĐT3","CK","TS. Trang Thành Trung",null,"Nhất"]
[2,"Phát triển nền tảng tích hợp OCR và AI trong chuyển đổi số học bạ và hỗ trợ giáo dục","Trần Đăng Hiếu\nVương Việt Cường\nLê Văn Quang\nLê Minh Hiếu\nNguyễn Khắc Trung","64CNTT3","CNTT","TS. Cù Việt Dũng",null,"Nhất"]
[3,"Nghiên cứu xây dựng công cụ đánh giá an toàn công trình thủy phục vụ quản lý thông tin công trình","Nguyễn Khánh Quang\nNguyễn Văn Trung Kiên\nTrình Hữu Tuấn\nTrần Thị Hiền","63C2\n65C2\n63CNTT.VA\n63C2","C","TS. Nguyễn Phương Dung\nPGS.TS Hồ Sỹ Tâm",null,"Nhất"]
[4,"Nghiên cứu thuật toán chẩn đoán và hỗ trợ điều trị bệnh Parkinson ứng dụng công nghệ xử lý ảnh","Đinh Mạnh Hoàng\nNguyễn Thị Quỳnh\nLê Trung Hiếu\nNguyễn Viết Hiệp","65KTRB","Đ-ĐT","TS. Ngô Quang Vĩ \nThS. Nguyễn Đức Minh",null,"Nhất"]
[5,"Nghiên cứu phương pháp biến tính sợi dứa định hướng chế tạo thiết bị hấp phụ kim loại nặng trong nước","Trần Minh Chiến\nNguyễn Thái Linh\nLê Phạm Minh Hùng\nNguyễn Mạnh Đức","63MT","H&MT","TS. Nguyễn Thị Hằng Nga\nTS. Phạm Nguyệt Ánh",null,"Nhất"]
[6,"Nghiên cứu các yếu tố ảnh hưởng đến việc thu hút vốn đầu tư trực tiếp nước ngoài- bằng chứng thực nghiệm tại Việt Nam","Vương Trí Thị Trang","64QT KDQT","KT&KD","TS. Nguyễn Thùy Linh",null,"Nhất"]
[7,"Nghiên cứu tác động của các yếu tố đến rủi ro phá sản của doanh nghiệp Việt Namh Phân tích so sánh sử dụng giữa tiếp cận truyền thống, học máy và học sâu","Hoàng Hiền Giang\nTrịnh Quang Hưng\nTạ Đình Đồng","64K-QT \n64K-QT\n64K-ĐT","KT&QL","PGS.TS Trương Đức Toàn",null,"Nhất"]
[8,"Kiểm soát tích lũy ô nhiễm trong rau ăn lá bằng các chế độ tưới khác nhau","Nguyễn Thị Phương Thanh\nĐào Thị Phương Duyên \nHoàng Hiền Chi","63N","N","PGS.TS Nguyễn Thị Hằng Nga \nTS. Nguyễn Quang Phi",null,"Nhất"]
[9,"Xây dựng ứng dụng \"học tốt lịch sử Đảng\" trên nền tảng di động hỗ trợ sinh viên tự học","Hoàng Trọng Vinh","64 CNTT1","Luật và LLCT","TS. Nguyễn Thị Anh",null,"Nhất"]
[10,"Thuyloi University's English-majored students' perceptions and preference of direct and indirect speech acts","Phạm Thị Bảo Trâm\nNguyễn Lưu Thiên Linh\nNguyễn Thị Minh Ngọc\nNguyễn Thị Thanh Nga \nTrương Ngọc Linh","64NNA","TTĐTQT","ThS. Phạm Hồng Trang\nTS. Lâm Thị Lan Hương",null,"Nhất"]
[11,"Nghiên cứu và ứng dụng kit vi xử lý nhúng xây dựng hệ thống nhận diện khách hàng thân quen","Nguyễn Thị Thanh Mai\nNguyễn Thị Kim Ngọc\nNguyễn Thị Ánh Nguyệt Nguyễn Thụy Trúc Thy ","S24-63CNTT1\nS24-63CNTT1\nS24-63CNTT1 S24-63KDQT","Phân hiệu","TS. Nguyễn Ngọc Tân   \nThS. Nguyễn Văn Hải ",null,"Nhất"]

{"sheet":"DS giải nhất khoa","index":5,"n_rows":36,"n_cols":8,"rows_kept":36,"merged":[[0,0,0,7]]}
["DANH SÁCH CÁC ĐỀ TÀI ĐẠT GIẢI NHẤT CẤP KHOA"]
[]
["TT","Tên đề tài","Sinh viên thực hiện","Lớp","Khoa ","Giáo viên hướng dẫn",null,"Ghi chú"]
[1,"Nghiên cứu mô hình cảnh báo điểm mù trên xe tự hành","Lê Hồng Ngọc Linh\nTrần Long Thành\nTrần Thành Đạt","63KTO-CN3\n63KTO-CN3\n62KTO-TK","Cơ khí","ThS. Nguyễn Tuấn Anh\nThS. Đặng Ngọc Duyên",null,"Có sản phẩm thực tế"]
[2,"Nghiên cứu nhận diện giọng nói ứng dụng đóng mở mặt nạ thông minh","Đào Long Vũ\nVũ Hải Linh\nVũ Đức Dũng","66CĐT2","Cơ khí","ThS. Nguyễn Tiến Thịnh",null,"Có sản phẩm thực tế"]
[3,"Nghiên cứu mô hình máy phát điện năng lượng sóng biển sử dụng cơ chế phao nổi","Nguyễn Thị Trà My\nNguyễn Tấn Mạnh\nNguyễn Trọng Đạt","64CĐT.NB-HQ\n64CĐT1\n63CĐT3","Cơ khí","TS. Trang Thành Trung",null,"Có sản phẩm thực tế"]
[4,"Mô phỏng khả năng hấp thụ năng lượng của hộp va chạm khi tác động ở tốc độ cao","Phạm Viết Hiếu \nĐào Văn Hợp\nNguyễn Quang Tình\nĐoàn Xuân Trường\nĐinh Gia Bảo Khánh","63CNCK_NB\n63CNCK_NB\n64CTM\n64CTM\n64CTM","Cơ khí","TS. Phạm Thị Hằng\nTS. Nguyễn Công Nguyên",null,"Phạm Thị Hằng, Phạm Viết Hiếu, “Nghiên cứu khả năng hấp thụ năng lượng của hộp va chạm khi biến dạng ở tốc độ cao”, Tạp chí KHKT Thủy lợi và Môi trường, 3, 73-80 (2025)."]
[5,"Nghiên cứu thiết kế, chế tạo đầu in vật liệu hạt lắp cho máy in 3D uPrint SE Plus ","Trần Văn Đạt\nPhạm Văn Thắng\nBùi Văn Đạt\nTrần Đức Toàn\nLê Quang Tráng","63CK-CNCK\n63CK-CNCK\n63CTM\n63CĐT1\n63CĐT1","Cơ khí","TS. Phan Bình Nguyên",null,"Có sản phẩm thực tế"]
[6,"Nghiên cứu và triển khai mô hình giao tiếp cho các phương tiện tự hành","Nguyễn Hữu Thành\nNguyễn Thuỳ Linh","64KTPM1\n64CNTT1","CNTT","TS. Lê Nguyễn Tuấn Thành","Công nghệ phần mềm"]
[7,"Phát triển nền tảng tích hợp OCR và AI trong chuyển đổi số học bạ và hỗ trợ giáo dục","Trần Đăng Hiếu\nVương Việt Cường\nLê Văn Quang\nLê Minh Hiếu\nNguyễn Khắc Trung","64CNTT3","CNTT","TS. Cù Việt Dũng","CNPM"]
[8,"Nghiên cứu, triển khai hệ thống giám sát và phòng chống xâm nhập IDS/IPS kết hợp AI","Đào Thị Hảo\nPhạm Mạnh Tùng","64ANM2\n64ANM1","CNTT","ThS. Nguyễn Thị Phương Thảo"]
[9,"AI-powered GIS: Một giải pháp hiệu quả để giám sát và quản lý chất lượng nước","Nguyễn Diệu Hoài Anh\nLê Trí Đức\nNguyễn Văn Nam\nVi Văn Qúy\nPhạm Văn Quyến","64KTPM5","CNTT","TS. Nguyễn Thọ Thông"]
[10,"Nghiên cứu xây dựng công cụ đánh giá an toàn công trình thủy phục vụ quản lý thông tin công trình","Nguyễn Khánh Quang\nNguyễn Văn Trung Kiên\nTrình Hữu Tuấn\nTrần Thị Hiền","63C2\n65C2\n63CNTT.VA\n63C2","Công trình","TS. Nguyễn Phương Dung\nPGS.TS Hồ Sỹ Tâm","Thủy công"]
[11,"Nghiên cứu ứng xử từ biến của đất sét yếu Hải Phòng và đánh giá ảnh hưởng tới tính toán lún của kè biển","Tạ Minh Hiếu\nNguyễn Quang Huy\nDương Bảo Phúc","63CX2","Công trình","TS. Đỗ Tuấn Nghĩa\nTS. Hoàng Thị Lụa","Địa KT","\"Mô hình phần tử hữu hạn trong dự toán lún của kè biển trên nền đất yếu có xét tới từ biến\" - Tạ Minh Hiếu, Dương Bảo Phúc, Nguyễn Quang Huy, Hoàng Thị Lụa, Đỗ Tuấn Nghĩa - Tuyển tập hội nghị Khoa học thường niên năm 2024.ISBN: 978-604-82-8175-5"]
[12,"Khảo sát ảnh hưởng của kích thước lỗ đến khả năng chịu lực của dầm thép chữ I bụng lỗ theo tiêu chuẩn TCVN 5575:2024","Nguyễn Văn Sơn\nNguyễn Thanh Chương\nVũ Quốc Đạt\nNguyễn Thanh Hiếu\nPhạm Minh Đức","63CX3","Công trình","TS. Nguyễn Văn Thắng\nTS. Phạm Thu Hiền"]
[13,"Nghiên cứu thuật toán chẩn đoán và hỗ trợ điều trị bệnh Parkinson ứng dụng công nghệ xử lý ảnh","Đinh Mạnh Hoàng\nNguyễn Thị Quỳnh\nLê Trung Hiếu\nNguyễn Viết Hiệp","65KTRB","Điện - Điện tử","TS. Ngô Quang Vĩ \nThS. Nguyễn Đức Minh"]
[14,"Nghiên cứu, đánh giá ảnh hưởng của điện trở nối tiếp (Rs) và điện trở song song (Rp) tới đặc tính của mô đun quang điện mặt trời","Lê Xuân Quyết\nNguyễn Thị Phương Thảo","63KTĐ-NLTT","Điện - Điện tử","TS. Nguyễn Công Chính"]
[15,"Thiết kế, điều khiển và ứng dụng thiết bị bay không người lái dạng Quadcopter.","Hà Minh Hiển\nNguyễn Bảo Minh\nNguyễn Ngọc Hà","64ĐTVT4","Điện - Điện tử","TS. Đoàn Hữu Chức"]
[16,"Nghiên cứu phương pháp biến tính sợi dứa định hướng chế tạo thiết bị hấp phụ kim loại nặng trong nước","Trần Minh Chiến\nNguyễn Thái Linh\nLê Phạm Minh Hùng\nNguyễn Mạnh Đức","63MT","H&MT","TS. Nguyễn Thị Hằng Nga\nTS. Phạm Nguyệt Ánh",null,"Co bài báo accept chưa đăng"]
[17,"Ứng dụng tinh dầu bạch đàn diệt muỗi vằn với quy mô phòng thí nghiệm","Đặng Tuấn Anh\nNguyễn Minh Hiếu\nHồ Sỹ Tùng\nVũ Trung Kiệt","59KTH\n64KTH\n66KTH1\n66KTH1","H&MT","TS. Lê Thị Thanh Trà\nTS. Lê Thu Hường"]
[18,"Nghiên cứu tạo chế phẩm xử lý ô nhiễm cyanide từ chủng vi khuẩn phân lập từ nước thải công nghiệp","Bùi Thùy Trang\nNguyễn Tuấn Quang\nĐỗ Thị Ngọc Linh","64CNSH2\n64CNSH2\n63SH","H&MT","TS. Trịnh Đình Khá"]
[19,"Nghiên cứu điều chế hương vị cà phê bằng lên men nấm Koji","Đàm Quang Duy\nNguyễn Ngọc Đạt\nLê Thị Thanh Hoa","63SH","H&MT","GS.TS Nguyễn Thị Kim Cúc\nTS. Ngô Thị Hoài Thu"]
[20,"ESG và giá trị các doanh nghiệp niêm yết trên thị trường chứng khoán Việt Nam","Lê Thị Thư \nNguyễn Kiều Tri \nĐoàn Như Quỳnh \nNguyễn Khánh Vy \nNguyễn Thanh Xuân","64TCNH1","KT&KD","PGS.TS Đào Thị Hương"]
[21,"Nghiên cứu các nhân tố ảnh hưởng đến việc áp dụng Kế toán bền vững trong doanh nghiệp tại Hà Nội","Doãn Vũ Hà Vy \nVũ Diệu Linh \nPhạm Thị Trang \nNguyễn Thị Phương Thảo","63KT1\n63KT1\n63KT1\n65KT","KT&KD","TS. Lê Thị Tâm\nThS. Nguyễn Thị Quỳnh Nga"]
[22,"Các yếu tố ảnh hưởng đến hành vi tiêu dùng xanh của giới trẻ: Nghiên cứu trường hợp ở Hà Nội","Đỗ Thị Thu Huyền\nĐào Minh Anh \nVũ Thị Thúy Diệu \nNguyễn Đại Dương \nBiện Văn Giáp","64QT-Mar2\n64QT-Mar2\n64QT-Mar2\n64QT-Mar2\n64QT-Mar3","KT&KD","TS. Đàm Thị Thủy"]
[23,"Nghiên cứu các yếu tố ảnh hưởng đến việc thu hút vốn đầu tư trực tiếp nước ngoài - bằng chứng thực nghiệm tại Việt Nam","Vương Trí Thị Trang","64QT KDQT","KT&KD","TS. Nguyễn Thùy Linh"]
[24,"Nghiên cứu tác động của các yếu tố đến rủi ro phá sản của doanh nghiệp Việt Namh Phân tích so sánh sử dụng giữa tiếp cận truyền thống, học máy và học sâu","Hoàng Hiền Giang\nTrịnh Quang Hưng\nTạ Đình Đồng","64K-QT \n64K-QT\n64K-ĐT","KT&QL","PGS.TS Trương Đức Toàn"]
[25,"Nghiên cứu về đóng góp của các dự án đầu tư xây dựng khi áp dụng BIM tới tăng trưởng kinh tế tại thành phố Hà Nội","Nguyễn Thanh Huyền \nNguyễn Thị Thanh Tuyền \nLâm Hải Hoà","63KTXD1\n63KTXD1\n63KTXD1","KT&QL","TS. Lê Minh Thoa"]
[26,"Nghiên cứu tác động của Quảng cáo cá nhân hóa trên mạng xã hội đối với hành vi mua của người tiêu dùng trực tuyến trên địa bàn thành phố Hà Nội","Đặng Thúy An\nCấn Thị Phương Anh\nNguyễn Châu Anh\nNguyễn Lan Anh","64TMĐT1\n64TMĐT1\n64TMĐT2\n64TMĐT2","KT&QL","TS. Bùi Thị Thu Hòa\nThS. Trần Hồng Ngọc"]
[27,"Nghiên cứu các yếu tố ảnh hưởng đến quyết định lựa chọn tài xế nữ trong vận tải hành khách bằng xe mô tô công nghệ của sinh viên Trường Đại học Thủy lợi","Đinh Thị Thu Giang\nPhùng Thu Trang\nPhạm Thị Thuỳ Linh\nLê Dương Hương Giang","65LG2\n65LG2\n65LG2\n65LG2","KT&QL","TS. Đỗ Thanh Thư"]
[28,"Ảnh hưởng của du lịch đối với bảo tồn văn hoá tại làng nghề múa rối nước Đào Thục","Nguyễn Hoàng Việt Anh\nTrần Thị Lan Anh\nNguyễn Thị Thảo Linh\nCao Phương Mai\nNguyễn Thuỳ Dương","64QTDL1\n64QTDL1\n65QTDL2\n66QTDL1\n66QTDL2","KT&QL","TS. Lê Mạnh Hùng"]
[29,"Kiểm soát tích lũy ô nhiễm trong rau ăn lá bằng các chế độ tưới khác nhau","Nguyễn Thị Phương Thanh\nĐào Thị Phương Duyên \nHoàng Hiền Chi","63N","KTTNN","PGS.TS Nguyễn Thị Hằng Nga \nTS. Nguyễn Quang Phi"]
[30,"Điều kiện lao động đối với lao động chưa thành niên nhìn từ pháp luật lao động một số quốc gia và giải pháp cho Việt Nam","Nguyễn Minh Thư\nNguyễn Bảo Ngọc\nNguyễn Ngọc Anh  \nĐào Thị Khánh Linh","64LUAT1\n64LUAT1\n64LUAT2\n64LUAT2","Luật và LLCT","TS. Phan Thị Thanh Huyền",null,"Sửa tên SV"]
[31,"Xây dựng ứng dụng \"học tốt lịch sử Đảng\" trên nền tảng di động hỗ trợ sinh viên tự học","Hoàng Trọng Vinh","64CNTT1","CNTT","TS. Nguyễn Thị Anh"]
[32,"Thuyloi University's English-majored students' perceptions and preference of direct and indirect speech acts","Phạm Thị Bảo Trâm\nNguyễn Lưu Thiên Linh\nNguyễn Thị Minh Ngọc\nNguyễn Thị Thanh Nga\nTrương Ngọc Linh","64NNA","TTĐTQT","ThS. Phạm Hồng Trang\nTS. Lâm Thị Lan Hương"]
[33,"Nghiên cứu và ứng dụng kit vi xử lý nhúng xây dựng hệ thống nhận diện khách hàng thân quen","Nguyễn Thị Thanh Mai\nNguyễn Thị Kim Ngọc \nNguyễn Thị Ánh Nguyệt\nNguyễn Thụy Trúc Thy","S24-63CNTT1\nS24-63CNTT1\nS24-63CNTT1 S24-63KDQT","Phân hiệu","TS. Nguyễn Ngọc Tân   \nThS. Nguyễn Văn Hải"]

{"sheet":"DS giải nhì khoa","index":6,"n_rows":46,"n_cols":8,"rows_kept":46,"merged":[[0,0,0,5]]}
["DANH SÁCH CÁC ĐỀ TÀI ĐẠT GIẢI NHÌ CẤP KHOA"]
[]
["TT","Tên đề tài","Sinh viên thực hiện","Lớp","Khoa ","Giáo viên hướng dẫn",null,"Ghi chú"]
[1,"Mô phỏng và điều khiển mạch hệ thống đèn pha trên xe ô tô con bằng phần mềm Proteus","Phạm Nam Phương\nĐỗ Khắc Quý\nNguyễn Thị Hải Yến\nBùi Đức Minh\nNguyễn Lê Hiếu","63KTO-TK\n63KTO-TK\n63KTO-CN1\n63KTO-TK\n63KTO-TK","Cơ khí","ThS. Dương Thị Hiện"]
[2,"Nghiên cứu nền tảng ROS mô phỏng điều khiển mô hình robot","Bùi Thanh Tú\nNguyễn Việt Bách","63CĐT.NB","Cơ khí","TS. Nguyễn Huy Thế"]
[3,"Nghiên cứu thiết kế máy tái chế nhựa dùng cho máy in 3D","Nguyễn Quang Trung\nNguyễn Hoàng Anh\nNguyễn Văn Nhật Tiến","66CĐT2\n66CĐT2\n66CĐT1","Cơ khí","ThS. Nguyễn Tiến Thịnh"]
[4,"Nghiên cứu sự suy thoái cấu trúc tế vi và cơ tính của thép SA209-T1a dùng làm ống quá nhiệt trong nhà máy nhiệt điện","Hà Mạnh Sơn\nTrần Tiến Dũng\nBùi Minh Đức\nTrần Văn Huy\nNguyễn Tuấn Minh","62CK-CNCK\n64CTM\n64CTM\n66CK2\n66CK1","Cơ khí","TS. Trần Văn Khanh\nTS. Lê Thị Giang"]
[5,"Nghiên cứu chế tạo mô hình hệ thống kiểm soát lực kéo trên ô tô con","Lê Xuân Lâm\nNguyễn Hoàng Sơn\nPhạm Quang Huy\nTrần Đức Huy","62KTO-CN2","Cơ khí","TS. Nguyễn Đăng Tấn"]
[6,"Ứng dụng công nghệ thông minh trong xây dựng hệ thống hỗ trợ giảng dạy và học tập","Nguyễn Thị Phương\nLê Văn Quang\nTrần Đăng Hiếu","64HTTT2\n64CNTT3\n64CNTT3","CNTT","ThS. Đỗ Oanh Cường\nThS. Phạm Xuân Trung"]
[7,"Mô hình Chatbot đa phương tiện hỗ trợ, cố vấn học tập cho sinh viên","Đậu Văn Giang\nVũ Văn Trung\nTrần Đại Nghĩa\nNguyễn Thị Tuyền","64CNTT2","CNTT","ThS. Vũ Thành Vinh"]
[8,"Nghiên cứu và phân tích kỹ thuật tấn công FSOP trong các hệ điều hành hiện đại","Đậu Đức Đạt","64ANM1","CNTT","TS. Võ Tá Hoàng\nThS. Phạm Thanh Bình"]
[9,"Ứng dụng tìm kiếm chuyên gia, tìm kiếm giảng viên hướng dẫn luận văn tốt nghiệp","Nguyễn Tiến Đạt\nTrần Hữu Hiếu\nNguyễn Huy Hoàng\nMai Ánh Dương","64TTNT1","CNTT","TS. Tạ Quang Chiểu\nTS. Trần Hồng Diệp"]
[10,"Nghiên cứu giải pháp cải thiện tính chất đặc biệt của đất (Tan rã, Trương nở), ứng dụng cho đất đắp đập Sông Sắt - tỉnh Ninh Thuận","Nguyễn Sĩ Mạnh\nNguyễn Tiến Đức\nDương Minh Phương","63C1","Công trình","TS. Trần Duy Quân\nTS. Hoàng Thị Lụa"]
[11,"Nghiên cứu các dạng hư hỏng của bê tông và đề xuất một số giải pháp sửa chữa","Nguyễn Thanh Huyền \nNguyễn Văn Đạt \nPhạm Thị Hương Giang \nPhạm Văn An ","64QLXD1","Công trình","PGS.TS Nguyễn Quang Phú\nTS. Phạm Nguyễn Hoàng"]
[12,"Nghiên cứu ứng dụng mạng Nơ-ron thông tin vật lý (PINNs) xác định mặt cắt kinh tế của đập bê tông trọng lực không tràn","Nguyễn Quang Long\nĐoàn Quang Trường\nTrương Thái Đức Dương\nLê Phương Hoa","62CNK\n62NKN","Công trình","TS. Lê Hồng Phương"]
[13,"Nghiên cứu ứng dụng phần mềm Ansys Motor Cad mô phỏng phân tích các động cơ điện","Lê Khang Trường","64KTĐ3","Điện - Điện tử","TS. Đinh Hải Lĩnh"]
[14,"Hỗ trợ người khiếm thị bằng ứng dụng thị giác máy tính kết hợp IOT","Ngô Hoài Nam","64TĐH1","Điện - Điện tử","TS. Trần Thị Chung Thủy"]
[15,"Hệ thống phân loại sản phẩm theo màu sắc sử dụng cánh tay robot kết hợp công nghệ xử lý ảnh OpenCV ","Lê Mạnh Kha\nHoàng Thị Nhàn\nNguyễn Đình Tuấn\nPhạm Anh Tú","64ĐTVT2\n64ĐTVT2\n64ĐTVT2\n64ĐTVT4","Điện - Điện tử","PGS.TS. Phan Văn Độ"]
[16,"Thiết bị hỗ trợ phát hiện chướng ngại vật cho người khiếm thị","Nguyễn Anh Quốc\nNguyễn Toàn Diện\nNguyễn Đăng Hiếu\nNguyễn Đình Quân\nVũ Thành Hưng","64TĐH1","Điện - Điện tử","TS. Trần Thị Chung Thủy"]
[17,"Nghiên cứu, thiết kế mạch nguồn xung tích hợp điều khiển từ xa qua internet","Phan Đức Nguyễn\nThái Hoài Vũ\nNguyễn Văn Vũ\nNguyễn Hà Tuấn\nNguyễn Ngọc Quang","65ĐTVT","Điện - Điện tử","TS. Trần Văn Hội"]
[18,"Thiết kế và chế tạo thiết bị đo nhịp tim , huyết áp và nồng độ oxy trong máu tích hợp IoT","Lê Xuân Tổng Tuần\nNgô Văn Hoàng","63ĐTVT1","Điện - Điện tử","TS. Đoàn Hữu Chức"]
[19,"Nghiên cứu phương pháp đánh giá vòng đời trong kiểm kê phát thải và đánh giá tác động môi trường của cơ sở xử lý chất thải rắn sinh hoạt","Nguyễn Thị Thanh Thảo\nNguyễn Việt Anh\nTrương Ngô Linh Đan \nNguyễn Minh Long \nĐinh Thị Ngọc Anh","64MT-KT\n64MT-QL\n64MT-QL\n65MT2\n63MT","H&MT","PGS.TS Nguyễn Thị Thế Nguyên\nNCS. Nguyễn Văn Phan"]
[20,"Nghiên cứu tạo vật liệu lưỡng kim Fe-Ni từ dịch chiết lá bạch đàn để loại bỏ Cu trong nước thải","Trần Thị Thu Hà\nTống Vân Trang\nLê An Hà","63KTH\n63KTH\n63KTH","H&MT","TS. Đinh Thị Lan Phương"]
[21,"Nghiên cứu bào chế chế phẩm sinh học từ lá cây vú sữa Nam Định Chrysophyllum cainito mang đặc tính kháng khuẩn và tiềm năng ứng dụng trong y dược-nông nghiệp","Nguyễn Thị Thùy Trang\nPhạm Thị Kiều Vi\nHoàng Gia Bảo\nVũ Thành Phát\nTrần Văn Thiện","65CNSH1","H&MT","TS. Cao Thị Huệ\nPGS.TS Nguyễn Thị Lan Hương"]
[22,"Phân lập, tuyển chọn chủng vi khuẩn có hoạt tính probiotic định hướng làm chế phẩm bổ sung thức ăn chăn nuôi ếch","Phạm Thế Mỹ","64CNSH2","H&MT","TS. Trịnh Đình Khá"]
[23,"Tác động của quản trị công ty đến trách nhiệm xã hội tại các doanh nghiệp dầu khí Việt Nam","Nguyễn Viết Hải \nTrần Nguyễn Minh Hằng\nTrần Hồng Ngọc\nĐào Phương Trà","64K-ĐT2\n64TCNH2\n64TCNH2\n64TCNH2","KT&QL\nKT&KD\nKT&KD\nKT&KD","TS. Vũ Thị Phương Thảo"]
[24,"Ảnh hưởng của đào tạo và đặc điểm cá nhân đến thái độ hoài nghi nghề nghiệp của sinh viên ngành kiểm toán Trường Đại học Thủy lợi","Ngô Thị Thu Hoài \nPhạm Thị Hiền \nHoàng Thị Chung \nTrần Thu Hoà","64KTA1","KT&KD","TS. Hoàng Thị Mai Lan"]
[25,"Ảnh hưởng của hiệu ứng FOMO (Fear of Missing Out) đến hành vi tiêu dùng trên nền tảng thương mại điện tử tại Việt Nam","Vũ Thị Ngọc\nBùi Hiền Ngọc \nPhạm Thị Phương Anh \nLê Minh Phương","64TCNH1\n66TCNH1 \n66TCNH1\n66KT1","KT&KD","TS. Trần Quốc Hưng"]
[26,"Nghiên cứu chuyển đổi số chuỗi cung ứng lâm sản tại Việt Nam","Đặng Thị Thanh \nNguyễn Thị Trang \nBùi Đức Huy","63QT-MAR3","KT&KD","TS. Triệu Đình Phương"]
[27,"Nghiên cứu các nhân tố ảnh hưởng đến tiến độ thi công xây dựng các công trình thủy lợi nhỏ và vừa","Đào Khánh Trang\nNguyễn Trúc Quỳnh\nNguyễn Thanh Huyền","64KTXD3\n64KTXD3\n63KTXD1","KT&QL","PGS.TS Nguyễn Thiện Dũng"]
[28,"Tác động của chuyển đổi số đến sự phát triển thị trường chứng khoánh Bằng chứng thực nghiệm tại một số nước trong khu vực ASEAN và một số khuyến nghị cho Việt Nam","Khuất Thu Hương\nCấn Thị Thanh Hiền \nNguyễn Thị Thanh Hương","64K- ĐT 1\n64K- ĐT 1\n64K- ĐT 1","KT&QL","ThS. Lâm Thị Thùy Linh \n Trần Thị Ngọc Tú"]
[29,"Tác động của chất lượng dịch vụ đến sự hài lòng và lòng trung thành của khách hàng ngân hàng thương mại - nghiên cứu trên địa bàn thành phố Hà Nội","Nguyễn Ngọc Châu\nĐinh Thị Tuyết Nhung\nVũ Thị Mai Trang\nVũ Thị Xuân","65KTS\n64KTS1\n64KTS3\n64KTS3","KT&QL","TS. Phùng Tuấn Anh"]
[30,"Chiến lược phát triển logistics ngược theo mô hình kinh tế tuần hoàn: Trường hợp ngành thủy sản Việt Nam","Vũ Phương Anh \nĐoàn Kim Chi\nNguyễn Văn Huy\nNguyễn Ngọc Diệp\nPhùng Bảo Khánh","64LG2\n64LG2\n64LG2\n64LG2\n64LG2","KT&QL","TS. Nguyễn Phương Lan"]
[31,"Nghiên cứu thái độ của sinh viên năm thứ nhất Khoa Kinh tế và Quản lý Trường Đại học Thuỷ lợi đối với các hiện tượng livestream trên mạng xã hội","Nguyễn Hoàng Lộc\nNguyễn Thị Khánh Linh\nTrương Duy Khánh\nNguyễn Trúc Quỳnh","66KT1\n66KT1\n66KTXD2\n66LG2","KT&QL","ThS. Trương Thị Hương\nThS. Nguyễn Hồng Thu"]
[32,"Nghiên cứu giải pháp tiết kiệm điện năng tiêu thụ của trạm bơm cấp nước","Lê Danh Hoàng Đạt\nHà Mỹ Linh\nNguyễn Thị Ngọc Châu","63CTN","KTTNN","TS. Bùi Xuân Khoa","Cấp thoát nước"]
[33,"Ứng dụng mô hình toán thủy lực mô phỏng ngập lụt hạ lưu hồ chứa nước Đắc Lộc, thành phố Nha Trang, tỉnh Khánh Hòa","Trần Văn Hiểu","63V","KTTNN","PGS.TS. Phạm Văn Chiến","KTS&QLTT"]
[34,"Nghiên cứu thực trạng năng lực số của sinh viên Trường Đại học Thủy lợi trong bối cảnh đẩy mạnh chuyển đổi số hiện nay","Nguyễn Anh Huy\nPhan Thị Phương Anh\nHoàng Hương Giang\nNguyễn Thị Liên\nNguyễn Thị Linh","64CNTT3\n64CNTT2\n64K-ĐT1\n64K-QT\n64K-QT","CNTT\nCNTT\nKT&QL\nKT&QL\nKT&QL","TS. Đào Thu Hiền"]
[35,"Nghiên cứu về thực hiện trách nhiệm xã hội của sinh viên Trường Đại học Thuỷ lợi","Nguyễn Thị Thanh Thanh\nNguyễn Thị Điệp\nDương Công Trình\nTrần Thị Kim Hạnh","64LUAT2\n66LUATKT2\n66LUATKT2\n66LUATKT2","Luật và LLCT","TS. Ngô Thị Hương\nThS. Lê Thúy Hà"]
[36,"Pháp luật về điều kiện sử dụng lao động đối với lao động nữ và thực trạng thực hiện tại Công ty TNHH một thành viên Thuốc lá Bắc Sơn, Tỉnh Bắc Ninh","Nguyễn Thị Thanh Thanh\nNguyễn Phương Thảo\nBạch Thị Cẩm Ly\nHoàng Khương Duy","64LUAT2","Luật và LLCT","TS. Phan Thị Thanh Huyền"]
[37,"Áp dụng án lệ ở một số quốc gia trên thế giới và giá trị tham khảo đối với Việt Nam hiện nay","Trần Nguyên An\nPhạm Thị Ánh\nPhùng Ánh Bình Minh","66LUAT1\n66LUATKT2\n66LUATKT2","Luật và LLCT","ThS. Vũ Thị Minh Hằng"]
[38,"Analysis of flouting maxims in English classroom interaction at ThuyLoi University","Đỗ Thị Trúc Linh\nĐỗ Thị Xuân Chiên\nDương Thái Thuỳ Dương\nNguyễn Khánh Linh\nNguyễn Thị Ngọc Anh ","64NNA","TTĐTQT","TS. Trần Thị Ngọc Hà\nThS. Nguyễn Thị Hồng Anh"]
[39,"Nghiên cứu đối chiếu cấu trúc chữ Hán và chữ Nôm","Nguyễn Ngọc Chuẩn","65NNT","TTĐTQT","ThS. Tống Thuỳ Vân"]
[40,"Thực trạng làm thêm của sinh viên Phân hiệu Trường Đại học Thuỷ lợi hiện nay","Nguyễn Trọng Kiệt\nNguyễn Thành Đạt","S26-65LG","Phân hiệu","ThS. Mai Thị Xuân"]
[41,"Lựa chọn Trường Đại học của sinh viên: Trường hợp nghiên cứu tại Phân hiệu Trường Đại học Thủy lợi","Phạm Thanh Đảm\nNguyễn Thị Huyền Giang\nHuỳnh Thị Thanh Ngân\nTrần Thị Huyền Trang","S26-65LG","Phân hiệu","TS. Hà Kiên Tân"]
[42,"Đánh giá kháng chấn khung bê tông cốt thép bằng phương pháp tĩnh phi tuyến đẩy dần và TCVN 9386-2012","Ngô Hữu Sơn\nĐặng Việt Hưng","S24-63CX","Phân hiệu","ThS. Nguyễn Vĩnh Sáng"]
[43,"Xây dựng phần mềm phân tích tần suất dữ liệu khí tượng thủy văn","Nguyễn Trung Nam","S25-64CNTT","Phân hiệu","TS. Đặng Đồng Nguyên"]

{"sheet":"DS bc xét giải cấp Trường","index":7,"n_rows":16,"n_cols":7,"rows_kept":16,"hidden":true,"merged":[[0,0,0,6]]}
["DANH SÁCH CÁC BÁO CÁO ĐỀ XUẤT XÉT GIẢI CẤP TRƯỜNG"]
[]
["TT","Tên báo cáo","SVTH","Lớp","Khoa đề xuất","GVHD "]
[1,"Đánh giá mức độ ảnh hưởng tới hạ du khi xây dựng đập dâng trên sông Trà Khúc và đề xuất giải pháp công trình","Trần Thị Hoài Phương","58C-TL1","C","TS Nguyễn Phương Dung\nTS Trần Dũng Tiến","Thủy công, Thủy Lực"]
[2,"Khảo sát độ võng sàn bê tông cốt thép toàn khối có xét đến ảnh hưởng độ cứng dầm biên","Nguyễn Thị Dung","58CXD2","C","TS Nguyễn Ngọc Thắng","Xây dựng Dân dụng và Công nghiệp"]
[3,"Nghiên cứu sử dụng chất kết dính kiềm hoạt hóa kết hợp tro bay và xỉ lò cao để chế tạo bê tông ứng dụng cho các công trình Thủy lợi","Đỗ Việt Nam","59C1","C","PGS.TS Nguyễn Quang Phú","Vật liệu xây dựng"]
[4,"Nghiên cứu giải pháp công nghệ tự động nhận diện tình huống nguy hiểm tích hợp trên các thiết bị thông minh","Dương Văn Phụng","58PM","Công nghệ thông tin","ThS Trương Xuân Nam","Tin học và kỹ thuật tính toán"]
[5,"Nghiên cứu và chế tạo Robot thông minh tự chủ ứng dụng vận chuyển vật tư y tế","Nguyễn Huy Hiệp\nBùi Mạnh Hùng\nNguyễn Trung Hiếu\nNguyễn Trung Hiếu","58KTĐ-TĐH1","Điện - Điện tử","TS Vũ Minh Quang","Kỹ thuật điều khiển, TĐH"]
[6,"Nghiên cứu và chế tạo máy đo thân nhiệt","Ngô Việt Hoàn\nNguyễn Trung Hiếu \nNguyễn Trung Hiếu \nNguyễn Huy Hiệp\nBùi Mạnh Hùng","58KTD-HTĐ2\n58KTĐ-TĐH1\n58KTĐ-TĐH1\n58KTĐ-TĐH1\n58KTĐ-TĐH1","Điện - Điện tử","TS Phạm Đức Đại","Kỹ thuật điều khiển, TĐH"]
[7,"Nghiên cứu chế tạo nhựa phân hủy sinh học từ các nguyên liệu hữu cơ","Trần Thị Thảo Phương\nNguyễn Thu Hương \nĐặng Thị Phượng\nNguyễn Chí Cường\nNguyễn Thị Thu Huyền","58MT2\n58MT1 \n58MT1\n58MT1\n58MT1","Hóa - MT","ThS Phạm Thị Hồng\nTS Nguyễn Hoài Nam\n","Kỹ thuật Môi trường"]
[8,"Tổng hợp vật liệu Li1-xNaxNi0.5Mn0.5O2 và ứng dụng làm vật liệu dương cực cho pin lithium                                          ","Lê Phan Cẩm Linh\nPhan Thị Minh Hằng","58KTH \n59KTH","Hóa - MT","PGS.TS Đặng Thị Thanh Lê\nTS Nguyễn Sĩ Hiếu  ","Kỹ thuật Hóa học"]
["TT","Tên báo cáo","SVTH","Lớp","Khoa đề xuất","GVHD "]
[9,"Đánh giá tác động của các nhân tố tới khả năng học lại của sinh viên ngành kinh tế","Nguyễn Hoàng Anh \nNguyễn Thị Bích Ngọc \nLê Hồng Ngọc ","59KQT\n60K1\n60K2","KT&QL","TS Phùng Mai Lan\nThS Nguyễn Thùy Trang","Kinh tế"]
[10,"Nghiên cứu các yếu tố tác động đến quyết định lựa chọn trường Đại học Thủy lợi của sinh viên khóa 61 Cơ sở Hà Nội","Phạm Thái Bảo\nNgô Mạnh Ninh\nĐỗ Thị Hiền Lương","58NTK\n58NQL\n59N","LLCT","ThS Nguyễn Như Quảng","Nguyên Lý cơ bản của CN Mác- Lênin"]
[11,"Nghiên cứu xây dựng chương trình giải đoán ảnh radar trên nền Google earth engine: áp dụng cho xây dựng bản đồ ngập nước tỉnh Đồng Tháp","Ngô Khánh Linh ","58G","Kỹ thuật Tài nguyên nước","TS. Phạm Văn Chiến","KT sông và QLTT"]
[12,"Ứng dụng cách tiếp cận đa mục tiêu để lựa chọn đường kính tối ưu cho hệ thống cấp nước: áp dụng cho hệ thống cấp nước khu công nghệ cao Lam Sơn, Thanh Hóa","Nguyễn Trung Hiếu  \nPhạm Văn Lai\nThái Hoàng Long","58CTN\n58CTN\n58CTN     ","Kỹ thuật Tài nguyên nước","TS. Đặng Minh Hải","Cấp thoát nước"]

{"sheet":"Tổng hợp điểm ","index":8,"n_rows":57,"n_cols":15,"rows_kept":57,"hidden":true,"merged":[[0,0,0,14],[12,1,12,14]]}
["TỔNG HỢP KẾT QUẢ ĐÁNH GIÁ ĐỀ TÀI NCKH CỦA CẤP TRƯỜNG"]
[]
["TT","Tên đề tài","Sinh viên thực hiện","Lớp","T. Kim","T. Tùng (N)","T. Tâm","T. Toàn","T. Tùng ","T. \nChính","T. Doanh","T. Lập","C. Thúy","Điểm TB","Đạt \ngiải"]
[1,"Đ/ giá mức độ a/h tới hạ du khi xây dựng đập dâng trên sông Trà Khúc và đề xuất giải pháp CT","Trần Thị Hoài Phương","58C-TL1"]
[4,"N/c gp công nghệ tự động nhận diện tình huống nguy hiểm tích hợp trên các thiết bị thông minh","Dương Văn Phụng","58PM"]
[5,"Nghiên cứu và chế tạo Robot thông minh tự chủ ứng dụng vận chuyển vật tư y tế","Nguyễn Huy Hiệp\nBùi Mạnh Hùng\nNguyễn Trung Hiếu\nNguyễn Trung Hiếu","58KTĐ-TĐH1"]
[7,"Nghiên cứu chế tạo nhựa phân hủy sinh học từ các nguyên liệu hữu cơ","Trần Thị Thảo Phương\nNguyễn Thu Hương \nĐặng Thị Phượng\nNguyễn Chí Cường\nNguyễn Thị Thu Huyền","58MT2\n58MT1 \n58MT1\n58MT1\n58MT1"]
[8,"Tổng hợp vật liệu Li1-xNaxNi0.5Mn0.5O2 và UD làm vật liệu dương cực cho pin lithium                                          ","Lê Phan Cẩm Linh\nPhan Thị Minh Hằng","58KTH \n59KTH"]
[9,"Đánh giá tác động của các nhân tố tới khả năng học lại của sinh viên ngành kinh tế","Nguyễn Hoàng Anh \nNguyễn Thị Bích Ngọc \nLê Hồng Ngọc ","59KQT\n60K1\n60K2"]
[10,"N/c các yếu tố tác động đến quyết định lựa chọn trường ĐHTL của sinh viên khóa 61 Cơ sở HN","Phạm Thái Bảo\nNgô Mạnh Ninh\nĐỗ Thị Hiền Lương","58NTK\n58NQL\n59N"]
[11,"N/c XD chương trình giải đoán ảnh radar trên nền Google earth engine: AD cho xây dựng bản đồ ngập nước tỉnh Đồng Tháp","Ngô Khánh Linh ","58G"]
[12,"Ứng dụng cách tiếp cận đa mục tiêu để lựa chọn đường kính tối ưu cho hệ thống cấp nước: áp dụng cho hệ thống cấp nước khu công nghệ cao Lam Sơn, Thanh Hóa","Nguyễn Trung Hiếu  \nPhạm Văn Lai\nThái Hoàng Long","58CTN\n58CTN\n58CTN     "]
[null,"CHÚ Ý:\n- Cơ cấu giải thưởng cấp trường: Nhất : nhì : ba là 1 : 2 : 3, số còn lại là giải khuyến khích;\n- Hội đồng xét chọn báo cáo xuất sắc tham gia xét giải thưởng \"Sinh viên nghiên cứu khoa học\" do Bộ GD&ĐT tổ chức."]
{"$rows_empty":43}
[null,"Thiết kế mô hình robot ARM"]

{"sheet":"DS giải ba khoa","index":9,"n_rows":57,"n_cols":8,"rows_kept":57,"merged":[[0,0,0,5]]}
["DANH SÁCH CÁC ĐỀ TÀI ĐẠT GIẢI BA CẤP KHOA"]
[]
["TT","Tên đề tài","Sinh viên thực hiện","Lớp","Khoa ","Giáo viên hướng dẫn",null,"Ghi chú"]
[1,"Khảo sát hành vi động lực học của ô tô bằng phần mềm Carsim","Nguyễn Đình Châu","63KTO-TK","Cơ khí","PGS.TS Nguyễn Đức Ngọc\nThS. Nguyễn Tuấn Anh"]
[2,"Nghiên cứu điều khiển hệ thống cảnh báo va chạm trên ô tô bằng Arduino","Trần Ngọc Minh Đức\nPhạm Đức Hải\nVõ Thái Sơn","64KTO1","Cơ khí","ThS. Dương Thị Hiện"]
[3,"Thiết kế module đo tốc độ động cơ cho bàn thực hành tự động hóa","Ngô Thị Diệu Tú\nLê Quang Long\nLê Công Điệp\nPhan Việt Hưng","64CĐT2","Cơ khí","ThS. Nguyễn Tuấn Anh"]
[4,"Nghiên cứu điều khiển động cơ sử dụng vi điều khiển STM32","Phạm Đức Duy\nHoàng Trọng Nghĩa\nVũ Minh Hiếu","63CĐT1","Cơ khí","ThS. Nguyễn Xuân Biên"]
[5,"Nghiên cứu ảnh hưởng của hạt oxit Al2O3 đến cơ tính vật liệu composite nền epoxy gia cường sợi dứa","Nguyễn Việt Đức\nKhương Đức Phú\nNguyễn Đình Long \nTrịnh Văn Phong","63CTM","Cơ khí","TS. Nguyễn Thị Hằng Nga\nThS. Lê Quang Khải"]
[6,"Nghiên cứu chế tạo xe kéo sử dụng hai chân robot để kéo xe","Lương Anh Quân\nPhùng Quang Đại","62CNCK\n62CTM","Cơ khí","TS. Vũ Ngọc Thương"]
[7,"Tìm hiểu về học tăng cường và ứng dụng thử nghiệm xây dựng game xếp hình","Nguyễn Anh Huy\nPhan Thị Phương Anh\nDương Hùng Phong\nPhạm Thị Phương Thanh\nHoàng Thị Dương","64CNTT3\n64CNTT2\n64CNTT3\n64CNTT3\n64CNTT3","CNTT","ThS. Nguyễn Ngọc Quỳnh Châu"]
[8,"Kỹ thuật Watermarking đảo ngược dễ vỡ dựa trên phép biến đổi fourier và ma trận fibonacci Q nhằm xác thực hình ảnh y tế","Nguyễn Thảo Nguyên\nNguyễn Tiến Đạt\nNgô Quang Minh","64TTNT2","CNTT","TS. Đinh Phú Hùng"]
[9,"Nghiên cứu một số tấn công và giải pháp phòng chống trong mạng không dây và IoT","Trần Thị Tú Oanh\nNguyễn Trung Kiên","64ANM2\n64CNTT2","CNTT","TS. Đoàn Thị Quế"]
[10,"Xây dựng mô hình học sâu nhận dạng khuôn mặt hỗ trợ cho việc chấm công","Vương Tất Chiến\nPhạm Đông Vũ\nTrịnh Ngọc Sơn\nLý Duy Bách\nPhạm Văn Dũng","64KTPM4\n64KTPM4\n64KTPM4\n64KTPM4\n64KTPM.NB","CNTT","TS. Tạ Quang Chiểu"]
[11,"Xác định thời gian phơi bãi rừng ngập mặn Kim Sơn -Ninh Bình","Bùi Minh Phương\nPhạm Minh Tâm\nBùi Hà My\nNguyễn Trọng Thưởng\nHoàng Trung Kiên","63C2\n64C1\n66QLXD3\n66QLXD3\n66C1","Công trình","PGS.TS Lê Hải Trung\nTS. Trương Hồng Sơn"]
[12,"Nghiên cứu hiện tượng trương nở bê tông do phản ứng kiềm-silic và các biện pháp phòng ngừa, khắc phục trong bảo trì kết cấu bê tông","Vũ Hải Hà ","64QLXD2","Công trình","TS. Nguyễn Thị Huệ"]
[13,"Thiết kế khung ngang nhà công nghiệp 1 tầng 1 nhịp bằng thép áp dụng tiêu chuẩn TCVN 2737:2023 và TCVN 5575:2024","Hoàng Minh Công\nNguyễn Anh Minh\nĐào Quang Vinh","64CX2","Công trình","TS. Nguyễn Thị Thanh Thúy\nTS. Bùi Sĩ Mười"]
[14,"Điều khiển dự báo dòng điện cho động cơ không đông bộ ba pha","Phạm Hồng Dương\nNguyễn Tiến Đức\nNguyễn Đăng Hiếu","63TĐH-ĐK1\n63TĐH-ĐK1\n64TĐH1","Điện - Điện tử","ThS. Nguyễn Thị Thuý Hằng"]
[15,"Ứng dụng điều khiển giọng nói trong nhà thông minh","Nguyễn Thành Trung\nNguyễn Lê Đình Huy\nBùi Minh Tiến","63ĐTVT2","Điện - Điện tử","ThS. Ngô Thị Lành"]
[16,"Xây dựng Trung tâm dữ liệu tại biên cho ứng dụng IoT sử dụng Raspberry Pi 4B","Nguyễn Hữu Thịnh\nLê Danh Trung\nNguyễn Hữu Mạnh\nNguyễn Văn Tính","64KTRB","Điện - Điện tử","TS. Lê Trung Dũng"]
[17,"Điều khiển dự báo cho bộ biến đổi Cuk","Nguyễn Tiến Đức\nPhạm Hồng Dương\nVũ Thành Hưng","63TĐH-ĐK1\n63TĐH-ĐK1\n64TĐH1","Điện - Điện tử","PGS.TS. Phạm Đức Đại"]
[18,"Mô phỏng điều khiển robot bằng phần mềm Webots","Nguyễn Nhật Anh\nNguyễn Văn Thanh \nNguyễn Đồng Thịnh","66TĐH1","Điện - Điện tử","ThS. Nguyễn Thị Thuý Hằng"]
[19,"Nghiên cứu thuật toán bắt điểm cực đại trong điều kiện bóng mờ","Đào Tiến Minh\nNguyễn Tiến Đức","64TĐH2\n63TĐH-ĐK1","Điện - Điện tử","TS. Nguyễn Hoàng Việt"]
[20,"Xây Dựng Hệ Thống Quan Trắc chất lượng NướcThông Minh Ứng Dụng IoT","Hoàng Văn Linh\nĐỗ Hoàng Việt\nNguyễn Hữu Hưởng\nLê Đức Dũng\nĐàm Minh Đức","63ĐTVT1","Điện - Điện tử","TS.Đoàn Hữu Chức"]
[21,"Nghiên cứu thiết kế hệ thống giám sát, cảnh báo lũ lụt, sạt lở đất","Nguyễn Hoàng Long\nHoàng Nhật Linh\nĐặng Trần Đạt\nVũ Quang Huy\nNguyễn Việt Cường","63ĐTVT2","Điện - Điện tử","ThS. Ngô Thị Lành"]
[22,"Nghiên cứu đánh giá chất lượng nước mặt trên địa bàn tỉnh Bình Dương và đề xuất giải pháp cải thiện","Lê Huỳnh Nhật Anh\n Nguyễn Thùy Dương\n Hoàng Thị Quỳnh","63MT","H&MT","PGS.TS Nguyễn Thị Minh Hằng"]
[23,"Khảo sát hiệu quả của than sinh học (biochar) làm chất mang cho vi khuẩn Bacillus subtilis định hướng trong sản xuất phân bón hữu cơ","Trịnh Thị Thúy\nNguyễn Thị Ngọc Anh\nLã Thị Thùy Linh\n","63SH","H&MT","TS. Lê Thị Ngọc Quỳnh"]
[24,"Phân lập và tuyển chọn chủng vi sinh vật chịu mặn có khả năng kích thích sinh trưởng thực vật từ mẫu rễ cây bần thuộc rừng ngập mặn Cồn Đen, tỉnh Thái Bình","Lê Thanh Trà\nNguyễn Thị Thanh Nhàn\nVũ Thu Giang\nNguyễn Thị Ngọc Anh\nLã Thị Thùy Linh","64CNSH2\n64CNSH2\n64CNSH2\n63SH\n63SH","H&MT","TS. Lê Thị Ngọc Quỳnh"]
[25,"Nghiên cứu ứng dụng bột lá chuối Musa acuminata AAA thay thế bột matcha trong sản xuất bánh ngọt","Dương Minh Yến\nHoàng Quốc Phương\nNguyễn Hoàng Anh\nNguyễn Đức Huy\nNguyễn Đào Nhật Minh","63SH\n63SH\n63SH\n63SH\n65CNSH1","H&MT","TS. Cao Thị Huệ \nPGS.TS Nguyễn Thị Lan Hương"]
[26,"Ứng dụng máy học (Machine Learning) trong phân tích tín dụng tại các NHTM Việt Nam","Trần Thị Trà My \nPhạm Bích Ngọc \nNguyễn Khánh Nga \nĐào Thị Thu Hoài \nNguyễn Thanh Xuân","64TCNH1","KT&KD","PGS.TS Lê Thanh Phương"]
[27,"Nghiên cứu các nhân tố ảnh hưởng đến tính kịp thời của Báo cáo tài chính tại các công ty phi tài chính niêm yết trên sở giao dịch chứng khoán Thành phố Hồ Chí Minh","Nguyễn Hải Yến \nNguyễn Thị Thu Duyên \nDương Phương Minh","64KT2\n64KT2\n64KTA1","KT&KD","TS. Trịnh Thị Thanh Loan\n TS. Vũ Lê Lam"]
[28,"Hành vi tiêu dùng \"Mua hàng ngẫu hứng\" trong livestream: Nghiên cứu tại địa bàn thành phố Hà Nội","Bùi Phương Linh \nVi Hoàng Kiều Trang \nVũ Thị Xuân Mai Anh \nPhạm Phương Thùy \nNguyễn Anh Thư","65TCNH1\n65TCNH1\n65K1\n64KTS3\n66KT2","KT&KD\nKT&KD\nKT&QL\nKT&QL\nKT&KD","TS. Đàm Thị Thủy \nThS. Nguyễn Thanh Huệ"]
[29,"Nghiên cứu chuyển đổi số chuỗi cung ứng sản phẩm nông nghiệp của doanh nghiệp Việt Nam","Nguyễn Thị Trà My \nNguyễn Hoàng Hà \nNguyễn Hương Quỳnh","63QT-KDQT1","KT&KD","TS. Triệu Đình Phương"]
[30,"Nghiên cứu nhân tố ảnh hưởng đến giá dự thầu của các nhà thầu khi tham gia đấu thầu các gói thầu xây dựng công trình tại Hà Nội","Phạm Đức Việt \nNguyễn Thị Lan \nĐặng Đoan Trang","63KTXD2\n63KTXD2\n63KTXD2","KT&QL","ThS. Nguyễn Thị Thủy"]
[31,"Đánh giá sự hài lòng của khách du lịch quốc tế đến Hà Nội","Nguyễn Thị Thu Hà\nVũ Thị Phương Anh \nNguyễn Ngọc Phong\nNgô Tiến Thành\nNguyễn Hải Nam","64QTDL2\n64QTDL2\n64QTDL2\n64QTDL2\n64QTDL2","KT&QL","ThS. Nguyễn Thị Thu Hà"]
[32,"Đánh giá chất lượng dịch vụ cấp nước tưới tại xã Hải Nam, huyện Hải Hậu, tỉnh Nam Định","Đỗ Thị Quỳnh Trang\nNguyễn Hồng Khánh\nNgô Đình Anh","63KTXD2\n63KTXD2\n63KTXD2","KT&QL","TS. Bùi Anh Tú"]
[33,"Nghiên cứu các nhân tố thu hút FDI thế hệ mới từ các\nnước phát triển vào Việt Nam","Vũ Minh Đức \n Nguyễn Văn Hải\n Lê Thùy Linh\n Trịnh Thị Diệu Linh","65K2 \n 65K1\n 65K1\n 65K2","KT&QL","TS. Phan Thúy Thảo\nThS. Phan Thuỳ Tâm"]
[34,"Tác động của mô hình thanh toán không tiền mặt đến ý định và hành vi thực sự của người tiêu dùng tại Hà Nội","Thái Bá Anh \nTrần Thị Ngọc Oanh\nNguyễn Thanh Tâm\nBùi Anh Quý","64TMĐT1 \n64TMĐT1\n64TMĐT1 64TMĐT1\n64TMĐT1","KT&QL","ThS. Nguyễn Phương Linh"]
[35,"Nghiên cứu ý định sử dụng hệ thống thanh toán di động bằng công nghệ kết nối không dây tầm ngắn (NFC) của sinh viên trường Đại học Thuỷ lợi","Trần Thị Ánh Duyên\nNguyễn Thị Giang\nDương Thị Hiền","64KTS2\n64KTS2\n64KTS2","KT&QL","TS. Nguyễn Thị Oanh"]
[36,"Nghiên cứu ảnh hưởngg của công cụ tiếp thị Xanh tới hiệu suất MĐT tại Việt Nam: dưới sự tác động của Digital Marketing","Nguyễn Minh Đức\nHà Chí Hoàng","64TMĐT1\n64TMĐT1","KT&QL","Th.S Đỗ Thị Dịu"]
[37,"Đánh giá tác động của AI tới hoạt động học tập của sinh viên trường Đại học Thủy lợi","Hứa Thị Thanh Huyền Khương Thị Hảo\nBùi Thị Huyền","65QT2\n65QT2\n65QT2","KT&QL","TS. Bùi Thị Phương Thảo"]
[38,"Nhận thức và động cơ du lịch chậm của khách du lịch thế hệ Z: Khảo sát sinh viên trường Đại học Thủy lợi","Trần Thị Hoài Linh \nTrần Thị Phương ThảoNguyễnBích Ngọc Nguyễn Thị Ngọc Linh\nNguyễn Hữu Hải","65QTDL2\n65QTDL2\n65QTDL2\n65QTDL2\n65QTDL2","KT&QL","ThS Vũ Ngọc Thư"]
[39,"Khai thác số liệu vận hành hồ chứa Vực Mấu tính toán hoàn nguyên dòng chảy trên lưu vực sông Hoàng Mai, tỉnh Nghệ An","Hoàng Anh Quý","63V","KTTNN","TS. Nguyễn Thị Thu Nga"]
[40,"Đánh giá bồi lắng hồ Pleikrong bằng mô hình HecRas trong điều kiện biến đổi khí hậu","Cao Hà Linh\nNguyễn Thu Trang","65V1\n65V2","KTTNN","TS. Đỗ Xuân Khánh"]
[41,"Đánh giá khả năng mô phỏng quá trình mưa-dòng chảy tới hồ Bình Điền tỉnh Thừa Thiên Huế sử dụng mô hình khí tượng thủy văn độ phân giải cao","Lê Thị Ngọc Ánh","63V","KTTNN","PGS.TS Nguyễn Tiến Thành"]
[42,"Nghiên cứu ảnh hưởng của Chat GPT đến việc học tập của sinh viên ngành Luật Trường Đại học Thủy lợi","Nguyễn Ngọc Anh\nLê Thị Hường\nĐào Thị Khánh Linh\nDương Nhật Long\nNguyễn Bảo Ngọc","64LUAT2\n64LUAT2\n64LUAT2\n64LUAT2\n64LUAT1","Luật và LLCT","ThS.NCS Nguyễn Như Quảng"]
[43,"Nghiên cứu thực trạng hoạt động tự học của sinh viên Trường Đại học Thủy lợi","Vũ Ngân Hà\nĐào Ngọc Hồng Anh","64LUAT1","Luật và LLCT","TS. Tô Mạnh Cường"]
[44,"Vi phạm hành chính trong quản lí bảo vệ công trình thuỷ lợi - Thực tiễn tại tỉnh Hưng Yên","Ngô Thị Minh Trang\nDương Nhật Long","64LUAT2","Luật và LLCT","ThS. Dương Hương Quế"]
[45,"Pháp luật về hoạt động quảng cáo thương mại của người nổi tiếng- một số vấn đề lý luận & thực tiễn","Nguyễn Thị Huyền\nTrần Phương Anh\nNguyễn Quang Đăng\nNguyễn Đình Phúc","64LUAT1","Luật và LLCT","PGS.TS. Nguyễn Viết Tý\nThS.NCS. Đỗ Thị Hạnh"]
[46,"Nghiên cứu ảnh hưởng của thuyết âm dương ngũ hành đến kiến trúc truyền thống Việt Nam","Vương Trí Thị Trang\nVương Nguyễn Khánh Uyên\nNgô Thị Khánh\nNguyễn Thị Hương Giang","64QT-KDQT\n64QT-Mar 2\n64QT-KDQT\n64QT-KDQT","KT&KD","TS. Trần Thị Ngọc Thúy \nThS. Nguyễn Thị Ngọc Dung"]
[47,"AI use and non-linguistic factors in language learning among English-major students at Thuyloi University","Vũ Hoàng Hải\nNguyễn Phương Anh\nBùi Thị Kim Oanh\nLại Thanh Thảo  ","64NNA","TTĐTQT","TS. Nguyễn Văn Sơn\nThS. Phạm Hồng Trang "]
[48,"GenZ’s Perceptions of Foreign Language Relocalization used on Social Networks Posts","Đặng Thuý Quỳnh\nPhạm Thị Hồng Duyên\nNguyễn Thị Hải Anh\nĐào Minh Phương","64NNA","TTĐTQT","TS. Lâm Thị Lan Hương"]
[49,"Nghiên cứu ảnh hưởng của động cơ học tập ban đầu đến tình hình học tập năm học đầu của sinh viên K65 ngành Ngôn ngữ Trung Quốc Đại học Thủy lợi","Phan Thị Mai Hương\nPhí Thị Thanh Hoàn","65NNT","TTĐTQT","TS. Tạ Hồng Thương"]
[50,"Thiết kế bộ thí nghiệm: nghiệm lại định luật bảo toàn cơ năng trên đệm không khí","Phan Nhật Huy\nNguyễn Anh Khoa\nTrần Quốc Thanh","S24-63C\nS25-64C\nS25-64C","Phân hiệu","ThS. Nguyễn Đăng Tâm"]
[51,"A-IOT hệ thống đo nhịp tim và oxy kết hợp AI","Lê Văn Bảo\nPhan Huệ Hy","S24-63CNTT2\nS24-63CNTT2","Phân hiệu","TS. Hoàng Văn Quý"]
[52,"Xây dựng mô hình các nhân tố ảnh hưởng đến tính hữu hiệu của hệ thống kiểm soát nội bộ trong bối cảnh chuyển đổi số hiện nay tại các doanh nghiệp ở Đông Nam bộ","Nguyễn Thị Yến\nHà Khánh Huyền\nNguyễn Minh Thuận ","S24-63KT  \nS24-63KT\nS25-64KT","Phân hiệu","ThS. Nguyễn Thị Diện \nThS. Đỗ Thị Thu Thủy"]
[53,"Nghiên cứu xác định hàm lượng cốt liệu xỉ thép hợp lý để sản xuất bê tông có cường độ và tính bền cao ứng dụng trong thi công giao thông","Nguyễn Huỳnh Đăng Khoa\nPhùng Ngọc Huy\nĐào Văn Tình\nNguyễn Quang Minh\nNguyễn Thanh Huyền","S25-64CT\nS25-64CT\nS25-64CT\nS25-64CT\nHN-64QLXD1","Phân hiệu","PGS.TS Nguyễn Quang Phú\nTS. Nguyễn Văn Sơn"]
[54,"Nghiên cứu đánh giá xu hướng diễn biến chất lượng nước từ 2019-2024 của Kênh Bắc tỉnh Ninh Thuận nhánh Ninh Hải","Lê Nguyễn Khánh Vy\nDương Nguyễn Trường Tài\nTrần Ngọc Vân Thảo","S26-65CTN\nS26-65CTN\nS26-65H","Phân hiệu","TS. Lê Công Chính"]